[Event "NJSK 2018 Meisjes C"]
[Site "Assen, Netherlands"]
[Date "2018.04.30"]
[Round "2.5"]
[White "Den Heijer, Rolinde"]
[Black "Morote, Luna"]
[Result "0-1"]
[TimeControl "40/90m+30m+30sec/move"]
[WhiteElo "1538"]
[BlackElo "1415"]

1. e4 {[%clk 01:30:57]} {[%emt 00:00:02]} c5 {[%clk 01:30:56]} {[%emt
00:00:05]} 2. Nf3 {[%clk 01:31:22]} {[%emt 00:00:04]} d6 {[%emt 00:00:22]} 3.
d4 {[%clk 01:31:37]} cxd4 {[%clk 01:31:44]} {[%emt 00:00:05]} 4. Nxd4 {[%clk
01:32:01]} {[%emt 00:00:06]} Nf6 {[%clk 01:32:09]} {[%emt 00:00:05]} 5. Nc3
{[%clk 01:32:19]} {[%emt 00:00:12]} a6 {[%clk 01:32:34]} {[%emt 00:00:06]} 6.
Be3 {[%clk 01:32:28]} {[%emt 00:00:20]} e5 {[%clk 01:32:52]} {[%emt 00:00:12]}
7. Nb3 {[%clk 01:32:11]} {[%emt 00:00:47]} Be6 {[%clk 01:33:01]} {[%emt
00:00:21]} 8. Bd3 {[%clk 01:31:58]} {[%emt 00:00:44]} Be7 {[%clk 01:33:04]}
{[%emt 00:00:26]} 9. O-O {[%clk 01:31:58]} {[%emt 00:00:30]} b5 {[%clk
01:33:01]} {[%emt 00:00:33]} 10. Nd2 {[%clk 01:31:41]} {[%emt 00:00:46]} Nc6
{[%clk 01:32:25]} {[%emt 00:01:06]} 11. a3 {[%clk 01:31:10]} {[%emt 00:01:02]}
Rc8 {[%clk 01:32:26]} {[%emt 00:00:29]} 12. Na2 {[%clk 01:29:29]} {[%emt
00:02:11]} d5 {[%clk 01:30:17]} {[%emt 00:02:38]} 13. exd5 {[%clk 01:29:04]}
{[%emt 00:00:56]} Nxd5 {[%clk 01:30:07]} {[%emt 00:00:41]} 14. Qe2 {[%clk
01:25:59]} {[%emt 00:03:34]} O-O {[%clk 01:26:09]} {[%emt 00:04:28]} 15. f3
{[%clk 01:20:32]} {[%emt 00:05:57]} Nxe3 {[%clk 01:25:43]} {[%emt 00:00:56]} 16.
Qxe3 {[%clk 01:20:47]} {[%emt 00:00:14]} Bxa2 {[%clk 01:24:54]} {[%emt
00:01:19]} 17. Rxa2 {[%clk 01:21:05]} {[%emt 00:00:13]} Qd5 {[%clk 01:22:56]}
{[%emt 00:02:27]} 18. Qe4 {[%clk 01:17:25]} {[%emt 00:04:10]} Qc5+ {[%clk
01:12:41]} {[%emt 00:10:45]} 19. Kh1 {[%clk 01:17:09]} {[%emt 00:00:47]} f5
{[%clk 01:12:47]} {[%emt 00:00:24]} 20. Qe2 {[%clk 01:14:25]} {[%emt 00:03:14]}
Nd4 {[%clk 01:11:39]} {[%emt 00:01:38]} 21. Qe1 {[%clk 01:09:08]} {[%emt
00:05:47]} Nxc2 {[%clk 01:07:56]} {[%emt 00:04:13]} 22. Bxc2 {[%clk 01:09:19]}
{[%emt 00:00:19]} Qxc2 {[%clk 01:08:02]} {[%emt 00:00:24]} 23. Qxe5 {[%clk
01:09:13]} {[%emt 00:00:36]} Qxd2 {[%clk 01:07:41]} {[%emt 00:00:51]} 24. Qe6+
{[%clk 01:08:14]} {[%emt 00:01:29]} Kh8 {[%clk 01:06:42]} {[%emt 00:01:29]} 25.
Qxe7 {[%clk 01:08:19]} {[%emt 00:00:25]} Rfe8 {[%clk 01:04:10]} {[%emt
00:03:02]} 26. Qb4 {[%clk 01:07:42]} {[%emt 00:01:07]} Rc2 {[%clk 01:01:42]}
{[%emt 00:02:57]} 27. Rg1 {[%clk 01:03:16]} {[%emt 00:04:56]} h6 {[%clk
00:51:18]} {[%emt 00:10:55]} 28. h3 {[%clk 01:01:10]} {[%emt 00:02:35]} Qxb4
{[%clk 00:50:43]} {[%emt 00:01:05]} 29. axb4 {[%clk 01:01:31]} {[%emt
00:00:10]} Ree2 {[%clk 00:50:55]} {[%emt 00:00:18]} 30. Rxa6 {[%clk 01:01:50]}
{[%emt 00:00:11]} Rxb2 {[%clk 00:51:15]} {[%emt 00:00:10]} 31. Ra8 {[%clk
01:01:50]} {[%emt 00:00:30]} Kh7 {[%clk 00:51:28]} {[%emt 00:00:17]} 32. Rf8
{[%clk 01:02:04]} {[%emt 00:00:16]} Kg6 {[%clk 00:50:23]} {[%emt 00:01:36]} 33.
Rb8 {[%clk 01:00:48]} {[%emt 00:01:46]} Rxb4 {[%clk 00:50:30]} {[%emt
00:00:22]} 34. Rd1 {[%clk 00:59:47]} {[%emt 00:01:19]} Rbb2 {[%emt 00:01:15]}
35. Rb6+ {[%emt 00:01:01]} Kh7 {[%clk 00:40:25]} {[%emt 00:08:29]} 36. Rg1
{[%clk 00:54:59]} {[%emt 00:05:19]} b4 {[%clk 00:40:32]} {[%emt 00:00:23]} 37.
Kh2 {[%clk 00:55:13]} {[%emt 00:00:16]} f4 {[%clk 00:39:51]} {[%emt 00:01:12]}
38. h4 {[%clk 00:55:06]} {[%emt 00:00:36]} b3 {[%clk 00:40:01]} {[%emt
00:00:21]} 39. Kh3 {[%clk 00:55:16]} {[%emt 00:00:19]} h5 {[%clk 00:39:07]}
{[%emt 00:01:25]} 40. Rb5 {[%clk 00:54:24]} {[%emt 00:01:22]} g6 {[%clk
00:38:40]} {[%emt 00:00:56]} 41. Rb7 {[%clk 00:54:08]} {[%emt 00:00:47]} Kh6
{[%clk 00:38:42]} {[%emt 00:00:28]} 42. Rb6 {[%clk 00:54:02]} {[%emt 00:00:36]}
Kg7 {[%clk 00:34:49]} {[%emt 00:04:23]} 43. Kh2 {[%clk 00:53:23]} {[%emt
00:01:08]} Rf2 {[%clk 00:32:25]} {[%emt 00:02:51]} 44. Kh1 {[%clk 00:52:14]}
{[%emt 00:01:35]} Rfe2 {[%clk 00:31:42]} {[%emt 00:01:20]} 45. Rb4 {[%clk
00:51:26]} {[%emt 00:01:18]} Re3 {[%clk 00:31:04]} {[%emt 00:01:09]} 46. Rd1
{[%clk 00:51:03]} {[%emt 00:00:52]} Rbe2 {[%clk 00:30:16]} {[%emt 00:01:17]} 47.
Rb1 {[%clk 00:48:01]} {[%emt 00:03:34]} Re1 {[%clk 00:30:17]} {[%emt 00:00:28]}
48. Rxe1 {[%clk 00:48:26]} {[%emt 00:00:06]} Rxe1 {[%clk 00:30:42]} {[%emt
00:00:05]} 49. Kh2 {[%clk 00:48:50]} {[%emt 00:00:06]} Rb1 {[%clk 00:30:59]}
{[%emt 00:00:13]} 50. Rxf4 {[%clk 00:48:32]} {[%emt 00:00:48]} b2 {[%clk
00:31:16]} {[%emt 00:00:12]} 51. Rb4 {[%clk 00:48:52]} {[%emt 00:00:10]} Kf6
{[%clk 00:30:46]} {[%emt 00:01:01]} 52. Kg3 {[%clk 00:49:12]} {[%emt 00:00:10]}
Ke5 {[%clk 00:30:45]} {[%emt 00:00:29]} 53. Kf2 {[%clk 00:49:29]} {[%emt
00:00:14]} Kd5 {[%clk 00:30:31]} {[%emt 00:00:43]} 54. Ke3 {[%clk 00:49:35]}
{[%emt 00:00:25]} Re1+ {[%clk 00:30:35]} {[%emt 00:00:26]} 55. Kf4 {[%clk
00:49:15]} {[%emt 00:00:51]} b1=Q {[%clk 00:30:35]} {[%emt 00:00:29]} 56. Rxb1
{[%clk 00:49:38]} {[%emt 00:00:07]} Rxb1 {[%clk 00:31:00]} {[%emt 00:00:06]} 57.
Kg5 {[%clk 00:50:03]} {[%emt 00:00:05]} Rb6 {[%clk 00:31:08]} {[%emt 00:00:22]}
58. f4 {[%clk 00:49:41]} {[%emt 00:00:52]} Ke4 {[%clk 00:31:11]} {[%emt
00:00:26]} 59. f5 {[%clk 00:49:23]} {[%emt 00:00:48]} gxf5 {[%clk 00:31:25]}
{[%emt 00:00:16]} 60. Kxh5 {[%clk 00:49:47]} {[%emt 00:00:06]} Ke5 {[%clk
00:30:23]} {[%emt 00:01:28]} 61. Kg5 {[%clk 00:49:53]} {[%emt 00:00:29]} Rb2
{[%clk 00:30:19]} {[%emt 00:00:33]} 62. g4 {[%clk 00:50:07]} {[%emt 00:00:16]}
fxg4 {[%clk 00:30:22]} {[%emt 00:00:27]} 63. Kxg4 {[%clk 00:50:23]} {[%emt
00:00:15]} Kf6 {[%clk 00:30:43]} {[%emt 00:00:08]} 64. Kh5 {[%clk 00:50:37]}
{[%emt 00:00:17]} Rb8 {[%clk 00:30:42]} {[%emt 00:00:31]} 65. Kg4 {[%clk
00:50:43]} {[%emt 00:00:23]} Kg6 {[%clk 00:31:01]} {[%emt 00:00:10]} 66. Kg3
{[%clk 00:50:40]} {[%emt 00:00:34]} Kh5 {[%clk 00:31:21]} {[%emt 00:00:10]} 67.
Kh3 {[%clk 00:50:58]} {[%emt 00:00:12]} Rb3 {[%clk 00:31:41]} {[%emt 00:00:11]}
68. Kh2 {[%clk 00:51:19]} {[%emt 00:00:09]} Kxh4 {[%clk 00:32:03]} {[%emt
00:00:08]} 69. Kh1 {[%clk 00:51:42]} {[%emt 00:00:06]} Kg3 {[%clk 00:32:23]}
{[%emt 00:00:07]} 70. Kg1 {[%clk 00:52:05]} {[%emt 00:00:10]} Rb1+ {[%clk
00:32:43]} {[%emt 00:00:10]} 0-1

[Event "NJSK 2018 Meisjes C"]
[Site "Assen, Netherlands"]
[Date "2018.04.30"]
[Round "2.6"]
[White "Raulji, Kavya"]
[Black "Velasco, Kathleen"]
[Result "1-0"]
[TimeControl "40/90m+30m+30sec/move"]
[WhiteElo "1394"]
[BlackElo "1284"]

1. e4 {[%clk 01:30:58]} {[%emt 00:00:01]} e5 {[%clk 01:30:58]} {[%emt
00:00:03]} 2. Nf3 {[%clk 01:31:24]} {[%emt 00:00:04]} Nc6 {[%clk 01:31:22]}
{[%emt 00:00:06]} 3. Bc4 {[%clk 01:31:51]} {[%emt 00:00:02]} Bc5 {[%clk
01:31:47]} {[%emt 00:00:06]} 4. c3 {[%clk 01:32:18]} {[%emt 00:00:03]} Nf6
{[%clk 01:32:12]} {[%emt 00:00:05]} 5. d3 {[%clk 01:32:44]} {[%emt 00:00:04]}
d6 {[%clk 01:32:11]} {[%emt 00:00:31]} 6. Nbd2 {[%clk 01:32:43]} {[%emt
00:00:30]} O-O {[%clk 01:32:21]} {[%emt 00:00:20]} 7. O-O {[%clk 01:33:09]}
{[%emt 00:00:04]} Bg4 {[%clk 01:30:50]} {[%emt 00:02:01]} 8. h3 {[%clk
01:32:23]} {[%emt 00:01:16]} Bh5 {[%clk 01:30:08]} {[%emt 00:01:13]} 9. Re1
{[%clk 01:32:36]} {[%emt 00:00:16]} Ne7 {[%clk 01:23:44]} {[%emt 00:06:55]} 10.
Nf1 {[%clk 01:32:02]} {[%emt 00:01:04]} Bxf3 {[%clk 01:22:00]} {[%emt
00:02:14]} 11. Qxf3 {[%clk 01:32:07]} {[%emt 00:00:24]} h6 {[%clk 01:21:41]}
{[%emt 00:00:49]} 12. Bxh6 {[%clk 01:31:11]} {[%emt 00:01:26]} gxh6 {[%clk
01:19:55]} {[%emt 00:02:17]} 13. Qxf6 {[%clk 01:31:30]} {[%emt 00:00:10]} Kh7
{[%clk 01:19:02]} {[%emt 00:01:23]} 14. Bxf7 {[%clk 01:25:06]} {[%emt
00:06:54]} Qe8 {[%clk 01:08:45]} {[%emt 00:10:47]} 15. Bxe8 {[%clk 01:11:56]}
{[%emt 00:13:40]} Rxf6 {[%clk 01:08:50]} {[%emt 00:00:26]} 16. Bh5 {[%clk
01:09:51]} {[%emt 00:02:34]} Bxf2+ {[%clk 01:08:17]} {[%emt 00:01:03]} 17. Kh1
{[%clk 01:09:24]} {[%emt 00:00:57]} Bxe1 {[%clk 01:08:27]} {[%emt 00:00:20]} 18.
Rxe1 {[%clk 01:09:50]} {[%emt 00:00:04]} Raf8 {[%clk 01:08:29]} {[%emt
00:00:28]} 19. Bf3 {[%clk 01:09:34]} {[%emt 00:00:46]} Ng6 {[%clk 01:08:03]}
{[%emt 00:00:57]} 20. Nd2 {[%clk 01:08:38]} {[%emt 00:01:25]} Nf4 {[%clk
01:07:17]} {[%emt 00:01:15]} 21. Re3 {[%clk 01:07:04]} {[%emt 00:02:05]} Ne6
{[%clk 01:05:35]} {[%emt 00:02:13]} 22. Kh2 {[%clk 01:05:40]} {[%emt 00:01:53]}
a5 {[%clk 01:04:04]} {[%emt 00:02:02]} 23. h4 {[%clk 00:58:50]} {[%emt
00:07:19]} c5 {[%clk 01:02:31]} {[%emt 00:02:04]} 24. Nc4 {[%clk 00:56:27]}
{[%emt 00:02:53]} Nc7 {[%clk 01:00:32]} {[%emt 00:02:27]} 25. a3 {[%clk
00:53:19]} {[%emt 00:03:40]} Na6 {[%clk 00:48:45]} {[%emt 00:12:16]} 26. Nxa5
{[%clk 00:49:54]} {[%emt 00:03:55]} b6 {[%clk 00:46:26]} {[%emt 00:02:50]} 27.
Nb3 {[%clk 00:47:29]} {[%emt 00:02:55]} Rf4 {[%clk 00:42:48]} {[%emt 00:04:05]}
28. Kh3 {[%clk 00:45:49]} {[%emt 00:02:12]} Nc7 {[%clk 00:41:29]} {[%emt
00:01:50]} 29. d4 {[%clk 00:43:57]} {[%emt 00:02:21]} c4 {[%clk 00:40:12]}
{[%emt 00:01:47]} 30. Nd2 {[%clk 00:44:03]} {[%emt 00:00:24]} b5 {[%clk
00:40:23]} {[%emt 00:00:20]} 31. d5 {[%clk 00:39:12]} {[%emt 00:05:20]} Rc8
{[%clk 00:40:11]} {[%emt 00:00:42]} 32. Bg4 {[%clk 00:38:23]} {[%emt 00:01:16]}
Ra8 {[%clk 00:40:06]} {[%emt 00:00:38]} 33. Bf5 {[%clk 00:38:13]} {[%emt
00:00:39]} Kh8 {[%clk 00:36:46]} {[%emt 00:03:51]} 34. Re2 {[%clk 00:37:02]}
{[%emt 00:01:40]} Rxf5 {[%clk 00:29:47]} {[%emt 00:07:30]} 35. exf5 {[%clk
00:37:24]} {[%emt 00:00:09]} Nxd5 {[%clk 00:30:01]} {[%emt 00:00:16]} 36. g3
{[%clk 00:32:40]} {[%emt 00:05:13]} Kg7 {[%clk 00:28:51]} {[%emt 00:01:40]} 37.
Ne4 {[%clk 00:32:26]} {[%emt 00:00:43]} Rb8 {[%clk 00:21:06]} {[%emt 00:08:15]}
38. Nxd6 {[%clk 00:31:28]} {[%emt 00:01:29]} Kf6 {[%clk 00:20:35]} {[%emt
00:01:00]} 39. Rf2 {[%clk 00:27:17]} {[%emt 00:04:40]} h5 {[%clk 00:14:48]}
{[%emt 00:06:18]} 40. Ne4+ {[%clk 00:26:52]} {[%emt 00:00:55]} Kf7 {[%clk
00:13:09]} {[%emt 00:02:10]} 41. f6 {[%clk 00:18:45]} {[%emt 00:08:37]} Rf8
{[%clk 00:07:57]} {[%emt 00:05:41]} 42. Ng5+ {[%clk 00:16:21]} {[%emt
00:02:54]} Kg6 {[%clk 00:07:20]} {[%emt 00:01:07]} 43. f7 {[%clk 00:16:32]}
{[%emt 00:00:20]} Nf6 {[%clk 00:06:50]} {[%emt 00:01:00]} 44. Rxf6+ {[%clk
00:14:56]} {[%emt 00:02:05]} Kxf6 {[%clk 00:06:56]} {[%emt 00:00:22]} 45. Nh7+
{[%clk 00:15:25]} {[%emt 00:00:04]} Kxf7 {[%clk 00:06:57]} {[%emt 00:00:29]} 46.
Nxf8 {[%clk 00:15:50]} {[%emt 00:00:05]} Kxf8 {[%clk 00:06:50]} {[%emt
00:00:37]} 47. g4 {[%clk 00:16:11]} {[%emt 00:00:10]} hxg4 {[%clk 00:02:14]}
{[%emt 00:05:06]} 48. Kxg4 {[%clk 00:16:35]} {[%emt 00:00:05]} Ke7 {[%clk
00:02:39]} {[%emt 00:00:05]} 49. Kf5 {[%clk 00:16:57]} {[%emt 00:00:07]} Kd6
{[%clk 00:02:55]} {[%emt 00:00:14]} 50. Ke4 {[%clk 00:17:23]} {[%emt 00:00:04]}
Kc6 {[%clk 00:03:01]} {[%emt 00:00:25]} 51. h5 {[%clk 00:17:28]} {[%emt
00:00:25]} Kb6 {[%clk 00:03:20]} {[%emt 00:00:11]} 52. h6 {[%clk 00:17:53]}
{[%emt 00:00:05]} Ka5 {[%clk 00:03:39]} {[%emt 00:00:11]} 53. h7 {[%clk
00:18:18]} {[%emt 00:00:05]} Ka4 {[%clk 00:03:56]} {[%emt 00:00:12]} 54. h8=Q
{[%clk 00:18:38]} {[%emt 00:00:10]} Kb3 {[%clk 00:04:14]} {[%emt 00:00:13]} 55.
Qxe5 {[%clk 00:18:58]} {[%emt 00:00:10]} Ka4 {[%clk 00:04:10]} {[%emt
00:00:34]} 56. Qc5 {[%clk 00:19:14]} {[%emt 00:00:13]} Ka5 {[%clk 00:03:29]}
{[%emt 00:01:10]} 57. Qb4+ {[%clk 00:19:38]} {[%emt 00:00:08]} Kb6 {[%clk
00:03:26]} {[%emt 00:00:29]} 58. a4 {[%clk 00:20:02]} {[%emt 00:00:10]} Kc6
{[%clk 00:02:51]} {[%emt 00:01:05]} 59. Qxb5+ {[%clk 00:20:23]} {[%emt
00:00:08]} 1-0

[Event "NJSK 2018 Meisjes C"]
[Site "Assen, Netherlands"]
[Date "2018.04.30"]
[Round "2.7"]
[White "De Putter, Nina"]
[Black "Jonkman Inza, Amelia Marry"]
[Result "1-0"]
[TimeControl "40/90m+30m+30sec/move"]
[WhiteElo "1672"]
[BlackElo "1222"]

1. e4 {[%clk 01:30:59]} {[%emt 00:00:01]} e6 {[%clk 01:30:53]} {[%emt
00:00:07]} 2. d4 {[%clk 01:31:23]} {[%emt 00:00:06]} d5 {[%clk 01:31:14]}
{[%emt 00:00:09]} 3. exd5 {[%clk 01:31:44]} {[%emt 00:00:10]} exd5 {[%clk
01:31:32]} {[%emt 00:00:11]} 4. c4 {[%clk 01:32:08]} {[%emt 00:00:05]} Nf6
{[%clk 01:30:43]} {[%emt 00:01:20]} 5. Nc3 {[%clk 01:32:26]} {[%emt 00:00:12]}
c6 {[%clk 01:29:25]} {[%emt 00:01:49]} 6. Nf3 {[%clk 01:31:59]} {[%emt
00:00:55]} Nbd7 {[%clk 01:25:12]} {[%emt 00:04:43]} 7. Bd3 {[%clk 01:29:28]}
{[%emt 00:03:01]} Be7 {[%clk 01:21:37]} {[%emt 00:04:05]} 8. Bf4 {[%clk
01:28:28]} {[%emt 00:01:30]} O-O {[%clk 01:18:30]} {[%emt 00:03:30]} 9. O-O
{[%clk 01:27:20]} {[%emt 00:01:45]} Re8 {[%clk 01:13:48]} {[%emt 00:05:13]} 10.
Rc1 {[%clk 01:23:57]} {[%emt 00:03:53]} Nf8 {[%clk 01:02:35]} {[%emt 00:11:42]}
11. cxd5 {[%clk 01:20:40]} {[%emt 00:03:47]} Nxd5 {[%clk 00:59:35]} {[%emt
00:03:31]} 12. Bg3 {[%clk 01:19:52]} {[%emt 00:01:17]} Bg4 {[%clk 00:56:21]}
{[%emt 00:03:45]} 13. Be2 {[%clk 01:17:51]} {[%emt 00:02:30]} Rc8 {[%clk
00:45:22]} {[%emt 00:11:29]} 14. Qb3 {[%clk 01:15:36]} {[%emt 00:02:45]} b5
{[%clk 00:44:54]} {[%emt 00:00:59]} 15. Nxd5 {[%clk 01:15:24]} {[%emt
00:00:41]} Qxd5 {[%clk 00:43:27]} {[%emt 00:01:58]} 16. Qxd5 {[%clk 01:15:30]}
{[%emt 00:00:24]} cxd5 {[%clk 00:43:31]} {[%emt 00:00:26]} 17. Bxb5 {[%clk
01:15:08]} {[%emt 00:00:52]} Red8 {[%clk 00:41:04]} {[%emt 00:02:56]} 18. Ne5
{[%clk 01:13:28]} {[%emt 00:02:10]} Bf5 {[%clk 00:38:44]} {[%emt 00:02:48]} 19.
Ba6 {[%clk 01:12:57]} {[%emt 00:01:03]} Rxc1 {[%clk 00:37:42]} {[%emt
00:01:32]} 20. Rxc1 {[%clk 01:13:19]} {[%emt 00:00:09]} Rd6 {[%clk 00:32:49]}
{[%emt 00:05:22]} 21. Nc6 {[%clk 01:06:54]} {[%emt 00:06:56]} Rd7 {[%clk
00:29:30]} {[%emt 00:03:49]} 22. Bc8 {[%clk 01:06:41]} {[%emt 00:00:43]} Bg5
{[%clk 00:19:35]} {[%emt 00:10:24]} 23. Bxd7 {[%clk 01:05:12]} {[%emt
00:01:59]} Bxd7 {[%clk 00:18:41]} {[%emt 00:01:24]} 24. f4 {[%clk 01:04:28]}
{[%emt 00:01:14]} Bf6 {[%clk 00:18:25]} {[%emt 00:00:46]} 25. Ne5 {[%clk
01:03:53]} {[%emt 00:01:05]} Be6 {[%clk 00:16:32]} {[%emt 00:02:23]} 26. Rc7
{[%clk 01:02:19]} {[%emt 00:02:04]} a5 {[%clk 00:13:36]} {[%emt 00:03:27]} 27.
Ra7 {[%clk 01:01:53]} {[%emt 00:00:55]} h6 {[%clk 00:11:38]} {[%emt 00:02:28]}
28. Rxa5 {[%clk 01:01:55]} {[%emt 00:00:28]} g5 {[%clk 00:07:59]} {[%emt
00:04:10]} 29. b4 {[%clk 01:01:27]} {[%emt 00:00:57]} Nh7 {[%clk 00:07:22]}
{[%emt 00:01:07]} 30. b5 {[%clk 01:00:48]} {[%emt 00:01:09]} Be7 {[%clk
00:06:14]} {[%emt 00:01:38]} 31. Ra8+ {[%clk 01:00:32]} {[%emt 00:00:46]} Kg7
{[%clk 00:06:15]} {[%emt 00:00:29]} 32. b6 {[%clk 01:00:33]} {[%emt 00:00:29]}
Bd6 {[%clk 00:04:17]} {[%emt 00:02:29]} 33. b7 {[%clk 01:00:33]} {[%emt
00:00:30]} Nf6 {[%clk 00:03:42]} {[%emt 00:01:04]} 34. b8=Q {[%clk 01:00:09]}
{[%emt 00:00:55]} Bxb8 {[%clk 00:04:01]} {[%emt 00:00:11]} 35. Rxb8 {[%clk
01:00:33]} {[%emt 00:00:05]} Ne4 {[%clk 00:04:07]} {[%emt 00:00:25]} 36. a4
{[%clk 01:00:36]} {[%emt 00:00:26]} Nc3 {[%clk 00:01:42]} {[%emt 00:02:55]} 37.
a5 {[%clk 01:00:54]} {[%emt 00:00:12]} Ne2+ {[%clk 00:01:49]} {[%emt 00:00:23]}
38. Kf2 {[%clk 01:01:12]} {[%emt 00:00:10]} Nxd4 {[%clk 00:02:00]} {[%emt
00:00:22]} 39. a6 {[%clk 01:01:22]} {[%emt 00:00:19]} f6 {[%clk 00:01:55]}
{[%emt 00:00:36]} 40. Nd3 {[%clk 01:01:19]} {[%emt 00:00:31]} Nc6 {[%clk
00:01:51]} {[%emt 00:00:35]} 41. Rb7+ {[%clk 01:01:35]} {[%emt 00:00:14]} Kg6
{[%clk 00:00:52]} {[%emt 00:01:30]} 42. a7 {[%clk 01:01:58]} {[%emt 00:00:07]}
Nxa7 {[%clk 00:01:06]} {[%emt 00:00:16]} 43. Rxa7 {[%clk 01:02:20]} {[%emt
00:00:07]} Bf5 {[%clk 00:01:25]} {[%emt 00:00:11]} 44. Ke3 {[%clk 01:02:32]}
{[%emt 00:00:18]} Kh5 {[%clk 00:01:04]} {[%emt 00:00:51]} 45. fxg5 {[%clk
01:02:44]} {[%emt 00:00:18]} fxg5 {[%clk 00:01:13]} {[%emt 00:00:22]} 46. h3
{[%clk 01:02:19]} {[%emt 00:00:54]} Kg6 {[%clk 00:01:20]} {[%emt 00:00:24]} 47.
Ra6+ {[%clk 01:02:20]} {[%emt 00:00:28]} Kh5 {[%clk 00:01:34]} {[%emt
00:00:17]} 48. Be1 {[%clk 01:02:28]} {[%emt 00:00:21]} Be4 {[%clk 00:01:40]}
{[%emt 00:00:25]} 49. g4 {[%clk 01:02:49]} {[%emt 00:00:08]} 1-0

[Event "NJSK 2018 Meisjes C"]
[Site "Assen, Netherlands"]
[Date "2018.04.30"]
[Round "2.8"]
[White "Van Essen, Marieke"]
[Black "Arnold, Kiri"]
[Result "1/2-1/2"]
[TimeControl "40/90m+30m+30sec/move"]
[WhiteElo "1282"]
[BlackElo "1340"]

1. e4 {[%clk 01:30:59]} c5 {[%clk 01:30:24]} {[%emt 00:00:37]} 2. Nf3 {[%emt
00:00:09]} d6 {[%clk 01:29:54]} {[%emt 00:00:58]} 3. d4 {[%clk 01:31:41]}
{[%emt 00:00:11]} cxd4 {[%clk 01:30:03]} {[%emt 00:00:21]} 4. Nxd4 {[%clk
01:32:06]} {[%emt 00:00:04]} Nf6 {[%clk 01:29:42]} {[%emt 00:00:51]} 5. Nc3
{[%clk 01:32:27]} {[%emt 00:00:09]} a6 {[%clk 01:29:39]} {[%emt 00:00:34]} 6.
Be2 {[%clk 01:29:44]} {[%emt 00:03:13]} e5 {[%clk 01:09:16]} {[%emt 00:20:53]}
7. Nb3 {[%clk 01:27:47]} {[%emt 00:02:27]} Be7 {[%clk 01:05:48]} {[%emt
00:03:58]} 8. Be3 {[%clk 01:27:27]} {[%emt 00:00:50]} O-O {[%clk 00:59:42]}
{[%emt 00:06:36]} 9. Qd2 {[%clk 01:24:29]} {[%emt 00:03:28]} Be6 {[%clk
00:53:52]} {[%emt 00:06:20]} 10. f3 {[%clk 01:22:20]} {[%emt 00:02:38]} d5
{[%clk 00:40:56]} {[%emt 00:13:26]} 11. exd5 {[%clk 01:18:09]} {[%emt
00:04:41]} Nxd5 {[%clk 00:40:00]} {[%emt 00:01:26]} 12. Nxd5 {[%clk 01:17:12]}
{[%emt 00:01:28]} Qxd5 {[%clk 00:30:42]} {[%emt 00:09:47]} 13. Qxd5 {[%clk
01:02:41]} {[%emt 00:15:00]} Bxd5 {[%clk 00:31:11]} {[%emt 00:00:02]} 14. O-O-O
{[%clk 01:02:51]} {[%emt 00:00:20]} Bxb3 {[%clk 00:22:46]} {[%emt 00:08:55]} 15.
axb3 {[%clk 01:03:07]} {[%emt 00:00:15]} Nc6 {[%clk 00:21:27]} {[%emt
00:01:49]} 16. Rd7 {[%clk 00:59:41]} {[%emt 00:03:56]} b5 {[%clk 00:19:00]}
{[%emt 00:02:56]} 1/2-1/2